Cogmind - Beta 12 @@@ ROGUE MODE // 2023.05.31 @ 14:38:53 Player: LustLizard Result: Destroyed by Y-45 Defender with Heavy Assault Rifle Performance ------------- Evolutions (0) 0 Regions Visited (2) 400 Robots Destroyed (13) 65 Value Destroyed (293) 293 Prototype IDs (1) 20 Alien Tech Used (0) 0 Bonus (0) 0 TOTAL SCORE: 778 Bonus ------- None Cogmind --------- Core Integrity 0/250 Matter 400/450 Energy 46/100 System Corruption 4% Temperature Cool (68) Movement Rolling (120) Ox2 Location -10/Mines Parts ------- > --- POWER (1) -------- (None) > --- PROPULSION (2) --- Light Treads Armored Wheel > --- UTILITY (2) ------ Large Storage Unit Large Matter Pod > --- WEAPON (2) ------- Particle Gun Beam Cannon > --- INVENTORY (15) --- Light Ion Engine Heat Sink Improved Heat Sink Large Storage Unit Signal Interpreter Signal Interpreter Weapon Shielding Peak State ------------ > --- POWER ------------ Ion Engine > --- PROPULSION ------- Armored Wheel Armored Wheel > --- UTILITY ---------- Medium Storage Unit Large Matter Pod > --- WEAPON ----------- Improved EM Shotgun Assault Rifle > --- INVENTORY -------- Ion Engine Light Treads Armored Wheel Armored Wheel Heat Sink Heat Sink Weapon Shielding Beam Cannon Grenade Launcher Grenade Launcher [Rating: 12] Favorites ----------- Power Ion Engine Engine Ion Engine Propulsion Armored Wheel Treads Light Treads Wheel Armored Wheel Utility Large Matter Pod Storage Large Matter Pod Weapon Assault Rifle Energy Gun Small Laser Energy Cannon Beam Cannon Ballistic Gun Assault Rifle Launcher Grenade Launcher Special Weapon Mining Laser Build | -11 -10 -10 ------- Run | Jun Mat Min Slots Evolved . | . . . Power . | . . . Propulsion . | . . . Utility . | . . . Weapon . | . . . Parts Attached 37 | 6 20 11 Power 3 | 1 1 1 Engine 3 | 1 1 1 Core . | . . . Reactor . | . . . Propulsion 13 | 2 8 3 Treads 5 | . 3 2 Leg . | . . . Wheel 8 | 2 5 1 Hover . | . . . Flight . | . . . Utility 4 | 1 3 . Device . | . . . Storage 4 | 1 3 . Processor . | . . . Hackware . | . . . Protection . | . . . Artifact . | . . . Weapon 17 | 2 8 7 Energy Gun 8 | . 5 3 Energy Cannon 1 | . . 1 Ballistic Gun 4 | 2 2 . Ballistic Cannon . | . . . Launcher 3 | . 1 2 Special Weapon 1 | . . 1 Impact Weapon . | . . . Slashing Weapon . | . . . Piercing Weapon . | . . . Special Melee Weapon . | . . . Unidentified Prototypes 1 | . 1 . Parts Lost 11 | . . 11 Power 2 | . . 2 Propulsion 3 | . . 3 Utility . | . . . Weapon 6 | . . 6 Highest Loss Streak 9 | . . 9 To Critical Strikes . | . . . Average Slot Usage (%) 93 | . 98 82 Engine 13 | . 14 12 Treads 10 | . 10 8 Wheel 15 | . 16 11 Storage 27 | . 26 28 Energy Gun 8 | . 11 2 Energy Cannon 2 | . . 7 Ballistic Gun 12 | . 16 5 Launcher 1 | . . 3 Naked Turns . | . . . Heaviest Build 33 | 13 33 33 Greatest Support 40 | 26 40 40 Greatest Overweight (x) 2 | 2 2 1 Average Overweight (x) . | . . . Largest Inventory Capacity 15 | 8 15 15 Average Capacity 11 | 7 9 15 Most Carried 15 | 6 15 15 Average Carried 9 | 3 9 11 Final Capacity 15 | 8 15 15 Final Carried 15 | 6 15 7 Class Distribution -------------------- 100% | Mutant Dominant Class ---------------- Mutant | -10/Materials Mutant | -10/Mines Resources | -11 -10 -10 ----------- Run | Jun Mat Min Matter Collected 848 | 260 461 127 Remotely . | . . . Salvage Created 357 | . 278 79 Parts 30 | . 26 4 Haulers Intercepted . | . . . Recyclers Shooed . | . . . Parts Field Recycled . | . . . Retrieved Matter . | . . . Parts Self-Destructed . | . . . Prevented . | . . . Kills | -11 -10 -10 ------- Run | Jun Mat Min Combat Hostiles Destroyed 21 | . 11 10 Guns 9 | . 8 1 Cannons 3 | . . 3 AOE 9 | . 3 6 Classes Destroyed 5 | . 3 2 Builder 1 | . 1 . Swarmer 6 | . 6 . Grunt 5 | . 5 . Sentry 1 | . . 1 Assembled 9 | . . 9 Best Kill Streak 7 | . 5 7 Combat Bots Only 7 | . 4 7 Max Kills in Single Turn 3 | . 3 3 Gunslinging . | . . . Exploded 3 | . 3 2 Melee . | . . . Uniques/NPCs Destroyed . | . . . Combat | -11 -10 -10 -------- Run | Jun Mat Min Damage Taken 1588 | . 371 1217 Core 261 | . 41 220 Absorbed by Shields . | . . . Core Remaining (%) 100 | 100 . . Volleys Fired 57 | . 32 25 Largest 2 | . 2 2 Hottest 160 | . 85 160 Shots Fired 100 | . 63 37 Gun 74 | . 61 13 Cannon 14 | . . 14 Launcher 11 | . 2 9 Special 1 | . . 1 Kinetic 41 | . 32 9 Thermal 46 | . 29 17 Explosive 11 | . 2 9 Electromagnetic 2 | . . 2 Robot Hit Streak 6 | . 6 6 Robot Miss Streak 4 | . 4 4 Penetration Max . | . . . Secondary Targets . | . . . Shots Hit Robots 58 | . 37 21 Core Hits 44 | . 18 26 Critical Kills . | . . . Critical Parts Destroyed . | . . . Critical Strikes . | . . . Melee Attacks . | . . . Impact . | . . . Slashing . | . . . Piercing . | . . . Sneak Attacks . | . . . Combat Hostiles . | . . . Follow-up Attacks . | . . . Damage Inflicted 1241 | 1 605 635 Guns 524 | . 432 92 Cannons 139 | . . 139 Explosions 535 | . 158 377 Melee . | . . . Ramming 19 | 1 15 3 Kinetic 253 | . 205 48 Thermal 419 | . 227 192 Explosive 535 | . 158 377 Electromagnetic 15 | . . 15 Impact . | . . . Slashing . | . . . Piercing . | . . . Highest Corruption 4 | . 4 4 Average Corruption 4 | . 4 4 Corruption Purged . | . . . Corruption Blocked . | . . . Effects 19 | . 8 11 Message Errors 7 | . 2 5 Matter Fused 1 | . 1 . Heat Flow Errors 2 | . 1 1 Energy Discharges 3 | . 1 2 Parts Rejected 1 | . 1 . Parts Fused 1 | . 1 . Data Loss (minor) 1 | . 1 . Misfires 1 | . . 1 Weapon Failures 2 | . . 2 Overload Shots . | . . . Overflow Damage . | . . . Projectiles . | . . . Explosions . | . . . Melee . | . . . Knockbacks . | . . . Impact . | . . . Kinetic . | . . . Secondary . | . . . Self-Inflicted Damage 29 | . 22 7 Shots 2 | . 1 1 Rammed 3 | 1 1 1 Targets Rammed 3 | 1 1 1 Kicked . | . . . Crushed . | . . . Highest Temperature 238 | . 206 238 Average Temperature 73 | . 69 78 Received Heat Transfer 281 | . 120 161 Siege Activations . | . . . Robots Corrupted . | . . . Combat Hostiles . | . . . Parts Fried . | . . . Impact Corruptions 1 | . 1 . Robots Melted . | . . . Combat Hostiles . | . . . Parts Melted . | . . . Heat Transferred 967 | . 547 420 Parts Sabotaged . | . . . Parts Stolen . | . . . Parts Stripped . | . . . Power Chain Reactions . | . . . Missiles Intercepted . | . . . Alert | -11 -10 -10 ------- Run | Jun Mat Min Peak Influence 175 | . 175 25 Initial 7 | . . 7 Average 68 | . 104 4 Maximum Alert Level . | . . . Low Security (%) 100 | 100 100 100 Level 1 . | . . . Level 2 . | . . . Level 3 . | . . . Level 4 . | . . . Level 5 . | . . . High Security . | . . . Max Security . | . . . Squads Dispatched . | . . . Investigation . | . . . Extermination . | . . . Reinforcement . | . . . Assault . | . . . Garrison . | . . . Intercept . | . . . Searches Triggered . | . . . Construction Impeded . | . . . Haulers Reinforced . | . . . Active Scanning Responses . | . . . Cargo Convoy Interrupts . | . . . Stealth | -11 -10 -10 --------- Run | Jun Mat Min Distress Signals . | . . . Communications Jammed . | . . . Distress Signals . | . . . Times Spotted 42 | . 19 23 Peak Tracking Total 10 | . 4 10 Tactical Retreats 3 | . 2 1 Traps | -11 -10 -10 ------- Run | Jun Mat Min Traps Triggered . | . . . Indirectly . | . . . Trap Hack Attempts . | . . . Triggered . | . . . Disarmed 6 | . 6 . Reprogrammed . | . . . Reused . | . . . Traps Extracted . | . . . Installed . | . . . Triggered . | . . . Machines | -11 -10 -10 ---------- Run | Jun Mat Min Machines Disabled . | . . . Max in Single Turn . | . . . Machines Repaired . | . . . Machines Sabotaged . | . . . Overloaded Fab Kills . | . . . Hacking | -11 -10 -10 --------- Run | Jun Mat Min Machines Accessed 6 | . 6 . Terminals 6 | . 6 . Fabricators . | . . . Repair Stations . | . . . Recycling Units . | . . . Scanalyzers . | . . . Garrison Access . | . . . Total Hacks 18 | . 18 . Successful 7 | . 7 . Failed 10 | . 10 . Catastrophic 2 | . 2 . Database Lockouts 1 | . 1 . Manual 18 | . 18 . Terminals 18 | . 18 . Fabricators . | . . . Repair Stations . | . . . Recycling Units . | . . . Scanalyzers . | . . . Garrison Access . | . . . Terminal Hacks 6 | . 6 . Robot Analysis 4 | . 4 . Locate Traps 1 | . 1 . Disarm Traps 1 | . 1 . Fabricator Hacks . | . . . Repair Station Hacks . | . . . Recycling Unit Hacks . | . . . Scanalyzer . | . . . Garrison Access Hacks . | . . . Unauthorized Hacks 1 | . 1 . Terminals 1 | . 1 . Botnet 1 | . 1 . Fabricators . | . . . Repair Stations . | . . . Recycling Units . | . . . Scanalyzers . | . . . Garrison Access . | . . . Data Cores Recovered . | . . . Used . | . . . Hacking Detections 6 | . 6 . Full Trace Events . | . . . Feedback Events . | . . . Feedback Blocked . | . . . Robot Schematics Acquired . | . . . Robots Built . | . . . Authchips . | . . . Time . | . . . Total Robot Build Rating . | . . . Part Schematics Acquired . | . . . Parts Built . | . . . Authchips . | . . . Time . | . . . Total Part Build Rating . | . . . Parts Repaired . | . . . Time . | . . . Parts Recycled . | . . . Recycled Matter . | . . . Retrieved Matter . | . . . Retrieved Components . | . . . Parts Scanalyzed . | . . . Part Schematics Acquired . | . . . Parts Damaged . | . . . Bothacking | -11 -10 -10 ------------ Run | Jun Mat Min Used RIF Installer . | . . . Robots Hacked . | . . . Non-combat . | . . . Combat . | . . . Robot Hacks Applied . | . . . Relay Couplers Released . | . . . Fabnet Peak Effective % . | . . . Robots Rewired . | . . . Allies Hacked . | . . . Hacks Repelled . | . . . Allies | -11 -10 -10 -------- Run | Jun Mat Min Total Allies . | . . . Largest Group . | . . . Highest-Rated Group . | . . . Highest-Rated Ally . | . . . Total Orders . | . . . Ally Attacks . | . . . Total Damage . | . . . Kills . | . . . Allies Corrupted . | . . . Allies Melted . | . . . Intel | -11 -10 -10 ------- Run | Jun Mat Min Robot Analysis Total 4 | . 4 . Derelict Logs Recovered 1 | . . 1 Drone Launches . | . . . Drone Recoveries . | . . . Exploration | -11 -10 -10 ------------- Run | Jun Mat Min Turns Passed 1259 | 59 815 385 Spaces Moved 886 | 48 648 190 Core 6 | 6 . . Treads 112 | . 35 77 Legs . | . . . Wheels 768 | 42 613 113 Hover . | . . . Flight . | . . . Fastest Speed 50 | 50 90 105 Average Speed 112 | 91 100 158 Slowest Speed 240 | 150 160 240 Overloaded Moves . | . . . Propulsion Burnouts . | . . . Robots Hopped . | . . . Cave-ins Triggered . | . . . Exploration Rate (%) 50 | 3 95 52 Regions Visited 2 Branch Regions 1 Pre-discovered Areas . | . . . Known Exits Taken . | . . . Unknown Exits Taken 2 | 1 1 . Scrap Searched 1 | . . 1 Spaces Dug . | . . . Terrain Destroyed 54 | . 11 43 Melee . | . . . Projectile . | . . . AOE 54 | . 11 43 Terrain Rammed . | . . . Walls Destroyed . | . . . Machines Disabled . | . . . Actions | -11 -10 -10 --------- Run | Jun Mat Min Total 1041 | 60 747 234 Wait 21 | . 16 5 Move 885 | 48 647 190 Hop . | . . . Pick Up 25 | 6 17 2 Fast Attach 11 | 6 5 . Attach 12 | . 2 10 Detach . | . . . Swap 14 | . 13 1 Drop 14 | . 14 . Fire 57 | . 32 25 Melee . | . . . Ram 2 | . 1 1 Kick . | . . . Crush . | . . . Escape Stasis . | . . . Rewire . | . . . Trap . | . . . Miscellaneous . | . . . Route ------- -11/Junkyard -10/Materials (discovered 5 exits: [*Mat x3] / [*Min x2]) -10/Mines History --------- Turn | Location | Event 28 | -11/Junkyard | Discovered new exit (range 15) 60 | -11/Junkyard | Entered Materials 298 | -10/Materials | Discovered new exit (range 13) 316 | -10/Materials | Build established: Mutant 376 | -10/Materials | Discovered new exit (range 16) 518 | -10/Materials | Central database locked down 549 | -10/Materials | Discovered new exit (range 11) 716 | -10/Materials | Discovered new exit (range 8) 818 | -10/Materials | Discovered new exit (range 9) 875 | -10/Materials | Entered Mines 900 | -10/Mines | Learned Materials trap positions 963 | -10/Mines | Assembled infested the area 965 | -10/Mines | Found a hidden stash of uninstalled traps 968 | -10/Mines | Assisted by a Guerilla fighting off Assembled 1022 | -10/Mines | Core integrity fell below 50% 1028 | -10/Mines | Destroyed 7 combat bots 1036 | -10/Mines | Core integrity fell below 20% 1072 | -10/Mines | Lost 9 parts (1p3n5w) 1260 | -10/Mines | Destroyed by Y-45 Defender with Heavy Assault Rifle Last Messages --------------- Acquired Lgt. Ion Engine. Acquired 90 matter. U-05 Engineer lays Concrete. U-05 Engineer builds a Wall. as-49490 destroyed. System corrupted: FCS attempts to trigger Beam Cannon. System corrupted: Beam Cannon misfires. K-01 Serf cleans the Matter Pump. as-02506 destroyed. K-01 Serf collects debris. System corrupted: Heat flow error (+116). K-01 Serf collects debris. Acquired 17 matter. K-01 Serf collects debris. XGCYRPS=,9RD,ZSME<9N8J8JX Lgt. Ion Engine destroyed. Y-45 Defender destroyed. Critical hit (Burn: +37). Mining Laser destroyed. System corrupted: Beam Cannon failed to cycle. Map ----- +----------------------------------------------------+ | ????????????##### ???????????? | | ???????????## ???????????? | | ???????????# ???????????? | | ??????????? ???????????? | | ???????????? ???????????? | | ?????????????? ???????????? | | ???????????????# ######?????? | | ????????????????# ## ##????? | | ?????????????????# #????? | | ??????????????????# ##???? | | ?????????????????## ##??? | | ????????????????## ##?? | | ???????????????## ##? | | ????????????#### ## """ ## | | ???????????## #### """ # | | ???????????# ##??# """ | | ???????????## ##???# | | ????????????## ##????## | | ?????####????# #??????## | | ????## ##???# #???????## # | | ?#### #??## #???????## ## | | ##!!## #### ##??????# | | #"!! # ## #??????# | | # *Y! #??????# ### | | # %/[ #??????## ##?? | | #"[! #@ ##???????##???? | | ?#]??# ##?????????????? | | ?????## ##??????????????? | | ??????## ## ##???????????????? | | ???????# #####????????????????? | | ???????# #????????????????????? | | ??????? #????????????????????? | | ??????? ????????????????????? | | ?????? ????????????????????? | | ?????? ????????????????????? | | ?????? ????????????????????? | | ????? ##???????????????????? | | ????? #?????????????????????? | | ?????? #??????????????????????? | | ??????????????????????????????? | | ??????????????????????????????? | | ??????????????????????????????? | | ??????????????????????????????? | | ??????????????????????????????? | | ??????????????????????????????? | | ??????????????????????????????? | | ??????????????????????????????? | | ??????????????????????????????? | | ??????????????????????????????? | | ??????????????????????????????? | +----------------------------------------------------+ Best States ------------- Heat Dissipation 25 Energy Generation 10 Energy Capacity 250 Matter Stores 450 Matter Capacity 450 Sight Range 16 Terrain Scan Density 10 Evasion (%) 42 Recoil Reduction 2 Item Schematics ----------------- None Robot Schematics ------------------ None Fabricated ------------ Nothing Alien Tech Used ----------------- None Achievements -------------- None Challenges ------------ None Game ------ Seed VortexHeartPlating Manual? 0 Play Time 00:19:18 Cumulative 31.8 hours Start 2023.05.31 @ 14:18:45 End 2023.05.31 @ 14:38:53 Sessions 1 Manual Loads 0 Difficulty Rogue Special Mode None Game No. 30 Rogue 30 Adventurer 0 Explorer 0 Win Type - Total 0 Types 0/0/0/0/0/0/0/0/0 Lore% 14 Gallery% 27 Achievement% 23 Wizard Run 0 Options --------- ASCII 0 Keyboard 0 Movement Numpad Keybinds 0 Fullscreen 1 Font 18/SmallcapsGlow Map View 76x50 Tactical HUD 0 Map Filters NONE Filters NONE Steam 1 RUN: c79979aa-c369-4b92-9831-0379bb80a4d5